[Event "EYCC Open-U14 2019"]
[Site "Bratislava"]
[Date "2019.08.10"]
[Round "9.39"]
[White "Vanduyfhuys, Igor"]
[Black "Paduano, Claudio"]
[Result "1-0"]
[ECO "B33"]
[WhiteElo "1804"]
[BlackElo "2037"]
[Annotator "NA RC"]
[PlyCount "121"]
[EventDate "2019.08.02"]
[EventType "swiss"]
[EventCountry "SVK"]
[SourceTitle "playchess.com"]
[Source "ChessBase"]
[SourceQuality "1"]
[TimeControl "40/5400+30:1800+30"]

1. e4 {[%emt 0:00:00]} c5 {[%emt 0:04:11]} 2. Nf3 {[%emt 0:00:00]} Nc6 {[%emt 0:00:40]} 3. d4 {[%emt 0:00:01]} cxd4 {[%emt 0:00:16]} 4. Nxd4 {[%emt 0:00:18]} Nf6 {[%emt 0:00:24]} 5. Nc3 {[%emt 0:00:23]} e5 {[%emt 0:00:45]} 6. Ndb5 {[%emt 0:01:02]} d6 {[%emt 0:00:39]} 7. Bg5 {[%emt 0:00:15]} a6 {[%emt 0:00:50]} 8. Na3 {[%emt 0:00:24]} b5 {[%emt 0:01:26]} 9. Nd5 {[%emt 0:00:16]} Be7 {[%emt 0:00:40]} 10. Bxf6 {[%emt 0:00:46]} Bxf6 {[%emt 0:00:28]} 11. c4 {[%emt 0:01:03]} b4 {[%emt 0:02:32]} 12. Nc2 {[%emt 0:00:10]} a5 {[%emt 0:01:51]} 13. g3 {[%emt 0:02:00]} O-O {[%emt 0:06:23]} 14. Bg2 {[%emt 0:02:15]} Bg5 {[%emt 0:08:45]} 15. O-O {[%emt 0:00:56]} Ne7 {[%emt 0:41:25]} 16. b3 {[%emt 0:09:47]} Bb7 {[%emt 0:17:51]} 17. Nce3 {[%emt 0:02:47]} Bxe3 {[%emt 0:08:28]} 18. Nxe3 {[%emt 0:00:43]} g6 {[%emt 0:00:53]} 19. Qd2 {[%emt 0:02:53]} Qb6 {[%emt 0:00:30]} 20. Rfd1 {[%emt 0:01:38]} Rfd8 {[%emt 0:00:26]} 21. Rac1 {[%emt 0:02:43]} Qc5 {[%emt 0:00:32]} 22. Ng4 {[%emt 0:04:29]} Kh8 {[%emt 0:00:33]} 23. Nh6 {[%emt 0:04:47]} Kg7 {[%emt 0:00:28]} 24. Rc2 {[%emt 0:03:17]} a4 {[%emt 0:00:29]} 25. bxa4 {[%emt 0:02:56]} Rxa4 {[%emt 0:00:33]} 26. Ng4 {[%emt 0:04:46]} Ng8 {[%emt 0:00:30]} 27. Ne3 {[%emt 0:00:40]} Ne7 {[%emt 0:00:30]} 28. h4 {[%emt 0:03:15]} Bc8 {[%emt 0:00:30]} 29. Rb2 {[%emt 0:01:18]} Be6 {[%emt 0:00:29]} 30. h5 {[%emt 0:01:08]} Nc6 {[%emt 0:00:31]} 31. Bf3 {[%emt 0:01:32]} Nd4 {[%emt 0:00:30]} 32. Be2 {[%emt 0:01:05]} f6 {[%emt 0:00:30]} 33. hxg6 {[%emt 0:02:49]} hxg6 {[%emt 0:00:25]} 34. Kg2 {[%emt 0:00:11]} Rh8 {[%emt 0:00:33]} 35. Rdb1 {[%emt 0:01:08]} Rha8 {[%emt 0:00:32]} 36. Rh1 {[%emt 0:00:22]} g5 {[%emt 0:00:29]} 37. Bg4 {[%emt 0:02:19]} Bxg4 {[%emt 0:00:32]} 38. Nxg4 {[%emt 0:00:17]} Qc6 {[%emt 0:00:29]} 39. f3 {[%emt 0:05:11]} Qxc4 {[%emt 0:00:28]} 40. Nxf6 {[%emt 0:00:00]} Kxf6 {[%emt 0:00:00]} 41. Rh6+ {[%emt 0:07:39]} Ke7 {[%emt 0:30:45]} 42. Rh7+ {[%emt 0:01:25]} Kf6 {[%emt 0:00:13]} 43. Rh6+ {[%emt 0:00:04]} Ke7 {[%emt 0:00:07]} 44. Rh7+ {[%emt 0:03:35]} Ke8 {[%emt 0:01:26]} 45. Qxg5 {[%emt 0:01:18]} R8a7 {[%emt 0:00:29]} 46. Qg6+ {[%emt 0:14:07]} Rf7 {[%emt 0:00:29]} 47. Qg8+ {[%emt 0:00:47]} Ke7 {[%emt 0:00:18]} 48. Rh8 {[%emt 0:01:08]} Nc6 {[%emt 0:00:46]} 49. Qe8+ {[%emt 0:05:05]} Kf6 {[%emt 0:00:08]} 50. Rh6+ {[%emt 0:03:27]} Kg5 {[%emt 0:00:14]} 51. Rxd6 {[%emt 0:10:19]} Rf6 {[%emt 0:01:05]} 52. f4+ {[%emt 0:01:13]} exf4 {[%emt 0:00:31]} 53. gxf4+ {[%emt 0:00:25]} Kxf4 {[%emt 0:00:31]} 54. Rxf6+ {[%emt 0:00:32]} Ke3 {[%emt 0:00:28]} 55. Qxc6 {[%emt 0:01:35]} Qg8+ {[%emt 0:00:31]} 56. Kf1 {[%emt 0:01:07]} Qh8 {[%emt 0:00:31]} 57. Re2+ {[%emt 0:01:14]} Kd4 {[%emt 0:00:28]} 58. Rd6+ {[%emt 0:00:12]} Ke5 {[%emt 0:00:21]} 59. Qd5+ {[%emt 0:00:17]} Kf4 {[%emt 0:00:12]} 60. Qf5+ {[%emt 0:00:08]} Kg3 {[%emt 0:00:51]} 61. Rg6+ {[%emt 0:00:14]} 1-0

[Event "EYCC Open-U14 2019"]
[Site "Bratislava"]
[Date "2019.08.10"]
[Round "9.40"]
[White "Kures, Michael"]
[Black "Schlegel, Igor"]
[Result "0-1"]
[ECO "B23"]
[WhiteElo "1898"]
[BlackElo "1968"]
[Annotator "NA RC"]
[PlyCount "78"]
[EventDate "2019.08.02"]
[EventType "swiss"]
[EventCountry "SVK"]
[SourceTitle "playchess.com"]
[Source "ChessBase"]
[SourceQuality "1"]
[TimeControl "40/5400+30:1800+30"]

1. e4 {[%emt 0:00:00]} c5 {[%emt 0:00:00]} 2. Nc3 {[%emt 0:01:12]} a6 {[%emt 0:00:14]} 3. a4 {[%emt 0:01:31]} Nc6 {[%emt 0:03:01]} 4. f4 {[%emt 0:01:59]} g6 {[%emt 0:02:58]} 5. Bc4 {[%emt 0:01:42]} Bg7 {[%emt 0:00:17]} 6. Nf3 {[%emt 0:00:36]} e6 {[%emt 0:09:27]} 7. e5 {[%emt 0:07:19]} d6 {[%emt 0:00:36]} 8. exd6 {[%emt 0:00:42]} Nf6 {[%emt 0:00:58]} 9. d3 {[%emt 0:02:21]} Qxd6 {[%emt 0:00:40]} 10. O-O {[%emt 0:00:43]} O-O {[%emt 0:00:12]} 11. Re1 {[%emt 0:07:21]} b6 {[%emt 0:01:50]} 12. Ne4 {[%emt 0:05:03]} Qc7 {[%emt 0:06:10]} 13. c3 {[%emt 0:02:40]} Bb7 {[%emt 0:00:40]} 14. Qc2 {[%emt 0:00:24]} Nd5 {[%emt 0:05:16]} 15. g3 {[%emt 0:04:44]} Rad8 {[%emt 0:15:00]} 16. Be3 {[%emt 0:05:49]} Nxe3 {[%emt 0:01:58]} 17. Rxe3 {[%emt 0:00:06]} Ne7 {[%emt 0:00:55]} 18. Rd1 {[%emt 0:02:17]} Nf5 {[%emt 0:09:53]} 19. Re2 {[%emt 0:01:07]} Nd6 {[%emt 0:00:37]} 20. Kf2 {[%emt 0:09:16]} Bxe4 {[%emt 0:02:48]} 21. Rxe4 {[%emt 0:01:27]} Nxe4+ {[%emt 0:00:07]} 22. dxe4 {[%emt 0:00:28]} b5 {[%emt 0:09:34]} 23. Rxd8 {[%emt 0:01:08]} Rxd8 {[%emt 0:01:23]} 24. axb5 {[%emt 0:00:15]} axb5 {[%emt 0:00:06]} 25. Be2 {[%emt 0:01:31]} c4 {[%emt 0:01:13]} 26. e5 {[%emt 0:00:11]} f6 {[%emt 0:02:05]} 27. exf6 {[%emt 0:00:31]} Bxf6 {[%emt 0:00:09]} 28. Qe4 {[%emt 0:00:30]} Qc5+ {[%emt 0:00:36]} 29. Kg2 {[%emt 0:00:25]} Qd5 {[%emt 0:02:21]} 30. Qe3 {[%emt 0:00:15]} Ra8 {[%emt 0:05:34]} 31. Kf2 {[%emt 0:00:58]} Ra1 {[%emt 0:03:06]} 32. Qb6 {[%emt 0:01:12]} Bd8 {[%emt 0:01:25]} 33. Qb8 {[%emt 0:00:30]} Ra8 {[%emt 0:00:11]} 34. Qe5 {[%emt 0:00:19]} Bb6+ {[%emt 0:00:46]} 35. Kg2 {[%emt 0:00:07]} Qxe5 {[%emt 0:00:06]} 36. Nxe5 {[%emt 0:00:06]} Ra2 {[%emt 0:00:18]} 37. Bg4 {[%emt 0:00:13]} Rxb2+ {[%emt 0:00:05]} 38. Kf3 {[%emt 0:00:10]} Rc2 {[%emt 0:01:11]} 39. Bxe6+ {[%emt 0:00:07]} Kg7 {[%emt 0:00:20]} 0-1

[Event "EYCC Open-U14 2019"]
[Site "Bratislava"]
[Date "2019.08.10"]
[Round "9.41"]
[White "Maruntis, Patrik-Robert"]
[Black "Grzesik, Gracjan"]
[Result "1/2-1/2"]
[ECO "B52"]
[WhiteElo "1876"]
[BlackElo "2004"]
[Annotator "NA RC"]
[PlyCount "92"]
[EventDate "2019.08.02"]
[EventType "swiss"]
[EventCountry "SVK"]
[SourceTitle "playchess.com"]
[Source "ChessBase"]
[SourceQuality "1"]
[TimeControl "40/5400+30:1800+30"]

1. e4 {[%emt 0:00:00]} c5 {[%emt 0:00:00]} 2. Nf3 {[%emt 0:00:00]} d6 {[%emt 0:00:00]} 3. Bb5+ {[%emt 0:00:00]} Bd7 {[%emt 0:00:00]} 4. Bxd7+ {[%emt 0:00:16]} Qxd7 {[%emt 0:00:02]} 5. O-O {[%emt 0:00:13]} Nc6 {[%emt 0:00:39]} 6. c3 {[%emt 0:00:06]} Nf6 {[%emt 0:00:56]} 7. Re1 {[%emt 0:00:09]} g6 {[%emt 0:01:09]} 8. d4 {[%emt 0:00:04]} cxd4 {[%emt 0:02:31]} 9. cxd4 {[%emt 0:00:05]} Bg7 {[%emt 0:02:07]} 10. Nc3 {[%emt 0:07:55]} O-O {[%emt 0:02:58]} 11. Bg5 {[%emt 0:04:43]} Rfd8 {[%emt 0:11:55]} 12. Qd2 {[%emt 0:03:05]} Rac8 {[%emt 0:04:27]} 13. Nd5 {[%emt 0:06:41]} Re8 {[%emt 0:17:10]} 14. Re2 {[%emt 0:09:33]} Nh5 {[%emt 0:12:07]} 15. Nf4 {[%emt 0:12:15]} Nxf4 {[%emt 0:03:55]} 16. Bxf4 {[%emt 0:01:16]} b6 {[%emt 0:05:55]} 17. h3 {[%emt 0:13:45]} Qb7 {[%emt 0:04:33]} 18. Qd3 {[%emt 0:07:32]} Na5 {[%emt 0:15:27]} 19. Rc1 {[%emt 0:11:15]} Rxc1+ {[%emt 0:02:08]} 20. Bxc1 {[%emt 0:00:49]} Rc8 {[%emt 0:00:59]} 21. Rc2 {[%emt 0:01:43]} Rxc2 {[%emt 0:04:40]} 22. Qxc2 {[%emt 0:02:09]} Qc6 {[%emt 0:00:48]} 23. Qxc6 {[%emt 0:00:06]} Nxc6 {[%emt 0:00:02]} 24. Be3 {[%emt 0:00:16]} Kf8 {[%emt 0:01:53]} 25. Kf1 {[%emt 0:00:14]} Ke8 {[%emt 0:00:40]} 26. Ke2 {[%emt 0:00:18]} h6 {[%emt 0:00:57]} 27. a3 {[%emt 0:00:26]} Kd7 {[%emt 0:00:32]} 28. Kd3 {[%emt 0:00:18]} Kc7 {[%emt 0:00:45]} 29. Nd2 {[%emt 0:01:00]} Kb7 {[%emt 0:01:02]} 30. g4 {[%emt 0:01:09]} Kc7 {[%emt 0:01:31]} 31. f4 {[%emt 0:01:02]} e6 {[%emt 0:02:31]} 32. h4 {[%emt 0:00:48]} d5 {[%emt 0:00:47]} 33. e5 {[%emt 0:03:20]} Ne7 {[%emt 0:00:26]} 34. Nf1 {[%emt 0:00:22]} f5 {[%emt 0:00:29]} 35. exf6 {[%emt 0:02:42]} Bxf6 {[%emt 0:00:02]} 36. Bf2 {[%emt 0:00:14]} Kd7 {[%emt 0:00:49]} 37. Nd2 {[%emt 0:00:13]} Kc6 {[%emt 0:00:46]} 38. Nf3 {[%emt 0:00:52]} Kd7 {[%emt 0:00:39]} 39. Be3 {[%emt 0:00:39]} Ke8 {[%emt 0:00:32]} 40. b4 {[%emt 0:00:00]} Kd7 {[%emt 0:00:00]} 41. b5 {[%emt 0:03:36]} h5 {[%emt 0:11:10]} 42. g5 {[%emt 0:01:20]} Bg7 {[%emt 0:00:38]} 43. Ne1 {[%emt 0:00:45]} Nf5 {[%emt 0:00:27]} 44. Nf3 {[%emt 0:02:10]} Kc8 {[%emt 0:02:56]} 45. Bd2 {[%emt 0:16:21]} Kb7 {[%emt 0:06:37]} 46. Be1 Kc8 {Ke4} 1/2-1/2

[Event "EYCC Open-U14 2019"]
[Site "Bratislava"]
[Date "2019.08.10"]
[Round "9.42"]
[White "Danaci, Ege"]
[Black "Pegno, Mattia"]
[Result "1-0"]
[ECO "B24"]
[WhiteElo "1976"]
[BlackElo "1821"]
[Annotator "NA RC"]
[PlyCount "65"]
[EventDate "2019.08.02"]
[EventType "swiss"]
[EventCountry "SVK"]
[SourceTitle "playchess.com"]
[Source "ChessBase"]
[SourceQuality "1"]
[TimeControl "40/5400+30:1800+30"]

1. e4 {[%emt 0:00:00]} c5 {[%emt 0:00:00]} 2. Nc3 {[%emt 0:00:00]} Nc6 {[%emt 0:00:00]} 3. g3 {[%emt 0:00:00]} g6 {[%emt 0:00:00]} 4. Bg2 {[%emt 0:00:05]} Bg7 {[%emt 0:00:03]} 5. d3 {[%emt 0:00:05]} e6 {[%emt 0:00:31]} 6. Be3 {[%emt 0:00:07]} d6 {[%emt 0:00:07]} 7. f4 {[%emt 0:00:06]} Nge7 {[%emt 0:00:14]} 8. Nf3 {[%emt 0:00:08]} O-O {[%emt 0:00:10]} 9. O-O {[%emt 0:00:04]} Nd4 {[%emt 0:02:10]} 10. e5 {[%emt 0:01:00]} Nec6 {[%emt 0:11:30]} 11. exd6 {[%emt 0:01:39]} Qxd6 {[%emt 0:01:14]} 12. Ne4 {[%emt 0:00:07]} Qe7 {[%emt 0:01:48]} 13. c3 {[%emt 0:00:19]} f5 {[%emt 0:09:57]} 14. Nxc5 {[%emt 0:30:46]} Qxc5 {[%emt 0:04:23]} 15. cxd4 {[%emt 0:02:39]} Nxd4 {[%emt 0:03:44]} 16. Rc1 {[%emt 0:02:32]} Nxf3+ {[%emt 0:01:00]} 17. Qxf3 {[%emt 0:00:02]} Qb5 {[%emt 0:04:04]} 18. Rc7 {[%emt 0:04:31]} Rf7 {[%emt 0:20:31]} 19. Rfc1 {[%emt 0:02:15]} Rxc7 {[%emt 0:00:58]} 20. Rxc7 {[%emt 0:00:01]} Qxb2 {[%emt 0:02:46]} 21. Qf2 {[%emt 0:01:10]} Qb1+ {[%emt 0:04:23]} 22. Bf1 {[%emt 0:01:45]} e5 {[%emt 0:01:50]} 23. fxe5 {[%emt 0:07:10]} Bxe5 {[%emt 0:03:43]} 24. Rc1 {[%emt 0:00:16]} Qb4 {[%emt 0:02:20]} 25. Bc5 {[%emt 0:06:30]} Qa4 {[%emt 0:03:38]} 26. d4 {[%emt 0:01:47]} Bg7 {[%emt 0:01:01]} 27. Bc4+ {[%emt 0:01:06]} Kh8 {[%emt 0:00:14]} 28. d5 {[%emt 0:02:33]} b6 {[%emt 0:05:18]} 29. Bd4 {[%emt 0:04:47]} Qd7 {[%emt 0:00:57]} 30. Re1 {[%emt 0:00:38]} Bb7 {[%emt 0:01:00]} 31. Qb2 {[%emt 0:00:23]} Rb8 {[%emt 0:06:39]} 32. d6 {[%emt 0:01:46]} Bc6 33. Re7 1-0

[Event "EYCC Open-U14 2019"]
[Site "Bratislava"]
[Date "2019.08.10"]
[Round "9.43"]
[White "Jares, Michal"]
[Black "Sinitsyn, Anton"]
[Result "1-0"]
[ECO "D02"]
[WhiteElo "1974"]
[BlackElo "1847"]
[Annotator "NA RC"]
[PlyCount "151"]
[EventDate "2019.08.02"]
[EventType "swiss"]
[EventCountry "SVK"]
[SourceTitle "playchess.com"]
[Source "ChessBase"]
[SourceQuality "1"]
[TimeControl "40/5400+30:1800+30"]

1. d4 {[%emt 0:00:00]} d5 {[%emt 0:00:00]} 2. Nf3 {[%emt 0:00:00]} Nf6 {[%emt 0:00:00]} 3. g3 {[%emt 0:00:00]} c6 {[%emt 0:00:02]} 4. Bg2 {[%emt 0:00:00]} Bf5 {[%emt 0:00:38]} 5. O-O {[%emt 0:00:15]} e6 {[%emt 0:00:23]} 6. c4 {[%emt 0:00:15]} Nbd7 {[%emt 0:00:27]} 7. Qb3 {[%emt 0:01:31]} Qb6 {[%emt 0:00:10]} 8. c5 {[%emt 0:00:24]} Qxb3 {[%emt 0:00:26]} 9. axb3 {[%emt 0:00:02]} a6 {[%emt 0:01:35]} 10. b4 {[%emt 0:01:30]} h6 {[%emt 0:02:36]} 11. Nc3 {[%emt 0:03:18]} Rc8 {[%emt 0:03:07]} 12. h4 {[%emt 0:02:25]} Be7 {[%emt 0:01:07]} 13. Bf4 {[%emt 0:02:29]} O-O {[%emt 0:01:20]} 14. Nd2 {[%emt 0:05:19]} Rfd8 {[%emt 0:03:10]} 15. Nb3 {[%emt 0:10:04]} Nf8 {[%emt 0:02:08]} 16. Na4 {[%emt 0:04:39]} Ng6 {[%emt 0:07:49]} 17. Nb6 {[%emt 0:01:11]} Nxf4 {[%emt 0:00:24]} 18. Nxc8 {[%emt 0:00:03]} Nxe2+ {[%emt 0:00:18]} 19. Kh1 {[%emt 0:01:07]} Rxc8 {[%emt 0:00:16]} 20. Rfe1 {[%emt 0:07:12]} Bc2 {[%emt 0:04:32]} 21. Rxe2 {[%emt 0:01:47]} Bxb3 {[%emt 0:00:07]} 22. Bh3 {[%emt 0:07:08]} Bc4 {[%emt 0:00:35]} 23. Rxe6 {[%emt 0:01:15]} fxe6 {[%emt 0:00:23]} 24. Bxe6+ {[%emt 0:00:03]} Kf8 {[%emt 0:00:06]} 25. Bxc8 {[%emt 0:00:10]} Ne4 {[%emt 0:00:09]} 26. Kg1 {[%emt 0:01:21]} Bf6 {[%emt 0:01:49]} 27. Bxb7 {[%emt 0:04:19]} Bxd4 {[%emt 0:00:33]} 28. Bxa6 {[%emt 0:03:36]} Bxb2 {[%emt 0:04:56]} 29. Ra5 {[%emt 0:10:30]} Bxa6 {[%emt 0:03:54]} 30. Rxa6 {[%emt 0:00:02]} Bd4 {[%emt 0:00:25]} 31. Rxc6 {[%emt 0:02:11]} Bxf2+ {[%emt 0:00:27]} 32. Kg2 {[%emt 0:03:34]} Bxg3 {[%emt 0:00:26]} 33. b5 {[%emt 0:03:25]} Ke7 {[%emt 0:01:44]} 34. b6 {[%emt 0:07:00]} Kd7 {[%emt 0:16:01]} 35. Rg6 {[%emt 0:00:29]} Kc8 {[%emt 0:07:04]} 36. c6 {[%emt 0:06:22]} Bc7 {[%emt 0:03:32]} 37. bxc7 {[%emt 0:03:43]} Kxc7 {[%emt 0:00:11]} 38. Rxg7+ {[%emt 0:00:32]} Kxc6 {[%emt 0:00:09]} 39. Rg6+ {[%emt 0:00:35]} Kd7 {[%emt 0:00:08]} 40. Rxh6 {[%emt 0:00:00]} Ke7 {[%emt 0:00:00]} 41. Kf3 {[%emt 0:01:30]} Kf7 {[%emt 0:00:09]} 42. Ra6 {[%emt 0:00:59]} Kg7 {[%emt 0:00:10]} 43. Kf4 {[%emt 0:01:15]} Kh7 {[%emt 0:00:23]} 44. Ke5 {[%emt 0:01:13]} Ng3 {[%emt 0:00:15]} 45. Kxd5 {[%emt 0:01:17]} Nf5 {[%emt 0:00:13]} 46. Ra4 {[%emt 0:01:00]} Kg6 {[%emt 0:00:06]} 47. Ke5 {[%emt 0:01:07]} Ng7 {[%emt 0:00:12]} 48. Rg4+ {[%emt 0:01:04]} Kh6 {[%emt 0:00:19]} 49. Kf6 {[%emt 0:01:07]} Ne8+ {[%emt 0:00:06]} 50. Kf7 {[%emt 0:01:02]} Nd6+ {[%emt 0:00:29]} 51. Ke6 {[%emt 0:00:44]} Kh5 {[%emt 0:00:40]} 52. Rg8 {[%emt 0:01:42]} Ne4 {[%emt 0:00:23]} 53. Kf5 {[%emt 0:01:23]} Nd6+ {[%emt 0:00:18]} 54. Kf4 {[%emt 0:00:37]} Nf7 {[%emt 0:00:17]} 55. Kg3 {[%emt 0:01:07]} Nd6 {[%emt 0:00:41]} 56. Rg5+ {[%emt 0:00:31]} Kh6 {[%emt 0:00:12]} 57. Ra5 {[%emt 0:00:47]} Nf7 {[%emt 0:00:20]} 58. Kg4 {[%emt 0:00:43]} Nh8 {[%emt 0:00:31]} 59. h5 {[%emt 0:00:53]} Nf7 {[%emt 0:00:10]} 60. Ra6+ {[%emt 0:01:01]} Kh7 {[%emt 0:00:10]} 61. Ra7 {[%emt 0:01:09]} Kg8 {[%emt 0:00:11]} 62. Kf5 {[%emt 0:00:54]} Kg7 {[%emt 0:00:58]} 63. h6+ {[%emt 0:00:55]} Kg8 {[%emt 0:00:23]} 64. h7+ {[%emt 0:00:28]} Kh8 {[%emt 0:00:11]} 65. Kf6 {[%emt 0:01:49]} Nd6 {[%emt 0:00:46]} 66. Kg6 {[%emt 0:04:26]} Nc8 {[%emt 0:00:21]} 67. Rb7 {[%emt 0:01:41]} Ne7+ {[%emt 0:00:19]} 68. Kg5 {[%emt 0:01:26]} Nc6 {[%emt 0:01:58]} 69. Rc7 {[%emt 0:03:25]} Ne7 {[%emt 0:00:16]} 70. Rc5 {[%emt 0:02:24]} Kg7 {[%emt 0:00:30]} 71. h8=Q+ {[%emt 0:01:25]} Kxh8 {[%emt 0:00:14]} 72. Rc7 {[%emt 0:01:44]} Nd5 {[%emt 0:01:24]} 73. Rc5 {[%emt 0:03:31]} Ne7 {[%emt 0:01:00]} 74. Kf6 {[%emt 0:01:14]} Ng8+ {[%emt 0:00:14]} 75. Kg6 {[%emt 0:00:52]} Ne7+ {[%emt 0:00:16]} 76. Kf7 {[%emt 0:00:20]} 1-0

[Event "EYCC Open-U14 2019"]
[Site "Bratislava"]
[Date "2019.08.10"]
[Round "9.44"]
[White "Titze, Leo"]
[Black "Putar, Leon"]
[Result "1-0"]
[ECO "A45"]
[WhiteElo "1919"]
[BlackElo "1742"]
[Annotator "NA RC"]
[PlyCount "93"]
[EventDate "2019.08.02"]
[EventType "swiss"]
[EventCountry "SVK"]
[SourceTitle "playchess.com"]
[Source "ChessBase"]
[SourceQuality "1"]
[TimeControl "40/5400+30:1800+30"]

1. d4 {[%emt 0:00:00]} Nf6 {[%emt 0:00:00]} 2. Bg5 {[%emt 0:00:00]} c5 {[%emt 0:00:11]} 3. d5 {[%emt 0:00:20]} Ne4 {[%emt 0:01:06]} 4. Bf4 {[%emt 0:00:12]} Qb6 {[%emt 0:00:23]} 5. Bc1 {[%emt 0:00:17]} g6 {[%emt 0:00:43]} 6. f3 {[%emt 0:00:16]} Nf6 {[%emt 0:00:19]} 7. e4 {[%emt 0:00:21]} d6 {[%emt 0:00:58]} 8. Nd2 {[%emt 0:00:20]} Bg7 {[%emt 0:01:18]} 9. Nc4 {[%emt 0:01:12]} Qc7 {[%emt 0:01:02]} 10. a4 {[%emt 0:00:52]} O-O {[%emt 0:01:19]} 11. Ne2 {[%emt 0:01:18]} Rd8 {[%emt 0:03:03]} 12. Nc3 {[%emt 0:00:35]} Bd7 {[%emt 0:02:07]} 13. Be2 {[%emt 0:01:07]} Be8 {[%emt 0:01:59]} 14. O-O {[%emt 0:03:18]} Nbd7 {[%emt 0:09:00]} 15. f4 {[%emt 0:20:51]} Nb6 {[%emt 0:05:09]} 16. Ne3 {[%emt 0:09:41]} e6 {[%emt 0:06:28]} 17. a5 {[%emt 0:02:15]} Nc8 {[%emt 0:00:36]} 18. g4 {[%emt 0:01:44]} exd5 {[%emt 0:10:17]} 19. g5 {[%emt 0:01:37]} Nh5 {[%emt 0:06:46]} 20. Nexd5 {[%emt 0:01:25]} Qd7 {[%emt 0:00:40]} 21. Bg4 {[%emt 0:00:37]} Bd4+ {[%emt 0:01:34]} 22. Kh1 {[%emt 0:01:07]} f5 {[%emt 0:04:37]} 23. gxf6 {[%emt 0:06:44]} Qf7 {[%emt 0:00:45]} 24. Bxc8 {[%emt 0:00:46]} Raxc8 {[%emt 0:00:11]} 25. Ne7+ {[%emt 0:00:06]} Kh8 {[%emt 0:00:11]} 26. Nxc8 {[%emt 0:00:14]} Rxc8 {[%emt 0:00:02]} 27. Nd5 {[%emt 0:07:15]} Bb5 {[%emt 0:02:49]} 28. Rf3 {[%emt 0:04:52]} Qe6 {[%emt 0:00:50]} 29. Qe1 {[%emt 0:01:49]} Bc6 {[%emt 0:01:32]} 30. c4 {[%emt 0:04:11]} Qg4 {[%emt 0:01:53]} 31. Rf1 {[%emt 0:02:13]} Qh3 {[%emt 0:01:10]} 32. Ra3 {[%emt 0:01:24]} Qg4 {[%emt 0:00:15]} 33. Raf3 {[%emt 0:02:18]} Nxf6 {[%emt 0:02:20]} 34. Bd2 {[%emt 0:05:42]} Re8 {[%emt 0:01:35]} 35. Nxf6 {[%emt 0:01:10]} Bxf6 {[%emt 0:00:05]} 36. h3 {[%emt 0:01:49]} Qh5 {[%emt 0:02:04]} 37. Kh2 {[%emt 0:02:40]} Bh4 {[%emt 0:01:13]} 38. Qd1 {[%emt 0:01:56]} Bxe4 {[%emt 0:05:06]} 39. Re3 {[%emt 0:01:25]} Qf5 {[%emt 0:00:45]} 40. Bc3+ {[%emt 0:00:00]} Bf6 {[%emt 0:00:00]} 41. Qxd6 {[%emt 0:04:52]} Bxc3 {[%emt 0:04:56]} 42. bxc3 {[%emt 0:00:01]} Re6 {[%emt 0:00:13]} 43. Qd2 {[%emt 0:03:47]} g5 {[%emt 0:00:45]} 44. Qd8+ {[%emt 0:00:26]} Kg7 {[%emt 0:00:28]} 45. Qxg5+ {[%emt 0:00:10]} Kf7 {[%emt 0:00:15]} 46. Rfe1 {[%emt 0:01:47]} Bf3 {[%emt 0:02:27]} 47. Qxf5+ 1-0

[Event "EYCC Open-U14 2019"]
[Site "Bratislava"]
[Date "2019.08.10"]
[Round "9.45"]
[White "Bogdanovics, Kirills"]
[Black "Unneland, Mathias"]
[Result "0-1"]
[ECO "E71"]
[WhiteElo "1600"]
[BlackElo "1966"]
[Annotator "NA RC"]
[PlyCount "58"]
[EventDate "2019.08.02"]
[EventType "swiss"]
[EventCountry "SVK"]
[SourceTitle "playchess.com"]
[Source "ChessBase"]
[SourceQuality "1"]
[TimeControl "40/5400+30:1800+30"]

1. d4 {[%emt 0:00:00]} Nf6 {[%emt 0:00:00]} 2. c4 {[%emt 0:00:00]} g6 {[%emt 0:00:00]} 3. Nc3 {[%emt 0:00:00]} Bg7 {[%emt 0:00:00]} 4. e4 {[%emt 0:00:00]} d6 {[%emt 0:00:00]} 5. h3 {[%emt 0:00:00]} O-O {[%emt 0:00:09]} 6. Nf3 {[%emt 0:00:00]} e5 {[%emt 0:00:28]} 7. d5 {[%emt 0:00:00]} a5 {[%emt 0:01:36]} 8. g4 {[%emt 0:00:04]} h5 {[%emt 0:18:22]} 9. Nh2 {[%emt 0:12:09]} hxg4 {[%emt 0:02:25]} 10. hxg4 {[%emt 0:03:23]} Nh7 {[%emt 0:05:23]} 11. Be3 {[%emt 0:02:24]} Na6 {[%emt 0:05:02]} 12. Qd2 {[%emt 0:01:06]} Nc5 {[%emt 0:01:51]} 13. Be2 {[%emt 0:01:53]} Bf6 {[%emt 0:10:35]} 14. O-O-O {[%emt 0:01:10]} Bg5 {[%emt 0:00:28]} 15. Kb1 {[%emt 0:02:06]} Qf6 {[%emt 0:04:43]} 16. Rdf1 {[%emt 0:07:40]} Bf4 {[%emt 0:02:17]} 17. Nf3 {[%emt 0:03:51]} Bxg4 {[%emt 0:05:47]} 18. Rfg1 {[%emt 0:00:03]} Bxe3 {[%emt 0:02:50]} 19. fxe3 {[%emt 0:00:06]} Bxf3 {[%emt 0:00:22]} 20. Bxf3 {[%emt 0:00:01]} Kg7 {[%emt 0:02:21]} 21. Qg2 {[%emt 0:02:56]} Rh8 {[%emt 0:00:42]} 22. Rh5 {[%emt 0:01:32]} Rag8 {[%emt 0:01:22]} 23. Rf5 {[%emt 0:01:23]} Qe7 {[%emt 0:02:58]} 24. Bh5 {[%emt 0:00:18]} Nf8 {[%emt 0:00:16]} 25. Rgf1 {[%emt 0:01:26]} Rh6 {[%emt 0:01:54]} 26. Qf3 {[%emt 0:00:27]} gxf5 {[%emt 0:00:41]} 27. exf5 {[%emt 0:01:06]} Qg5 {[%emt 0:00:42]} 28. Bg4 {[%emt 0:01:05]} Kf6 {[%emt 0:00:43]} 29. Rg1 {[%emt 0:00:33]} Rh4 {[%emt 0:00:05]} 0-1